fUSD/lending_fUSD_20240125
["ID","MTS","AMOUNT","RATE_DAILY","PERIOD"]
[312681621,1706145074396,-500.0,0.00049863,31]
[312681622,1706145074406,-500.0,0.00049863,31]
[312681623,1706145074415,-500.0,0.00049863,31]
[312681624,1706145074423,-500.0,0.00049863,31]
[312681625,1706145074433,-500.0,0.00049863,31]
[312681626,1706145074442,-500.0,0.00049863,31]
[312681627,1706145074451,-500.0,0.00049863,31]
[312681628,1706145074460,-669.25,0.00049863,20]
[312681629,1706145074469,-500.0,0.00049863,31]
[312681630,1706145074478,-500.0,0.00049863,31]
[312681631,1706145074487,-500.0,0.00049863,31]
[312681632,1706145074497,-500.0,0.00049863,31]
[312681633,1706145074506,-500.0,0.00049863,31]
[312681634,1706145074516,-500.0,0.00049863,31]
[312681635,1706145074529,-500.0,0.00049863,31]
[312681636,1706145074538,-500.0,0.00049863,31]
[312681637,1706145074547,-500.0,0.00049863,31]
[312681638,1706145074557,-500.0,0.00049863,31]
[312681639,1706145074567,-500.0,0.00049863,31]
[312681640,1706145074576,-1309.13,0.00049863,7]
[312681641,1706145074585,-500.0,0.00049863,31]
[312681642,1706145074594,-500.0,0.00049863,31]
[312681643,1706145074603,-500.0,0.00049863,31]
[312681644,1706145074613,-500.0,0.00049863,31]
[312681645,1706145074623,-520.3,0.00049863,31]
[312681646,1706145074634,-500.0,0.00049863,31]
[312681647,1706145074644,-500.0,0.00049863,31]
[312681648,1706145074654,-500.0,0.00049863,31]
[312681649,1706145074664,-500.0,0.00049863,31]
[312681650,1706145074674,-500.0,0.00049863,31]
[312681651,1706145074685,-500.0,0.00049863,31]
[312681652,1706145074695,-500.0,0.00049863,31]
[312681653,1706145074704,-500.0,0.00049863,31]
[312681654,1706145074714,-983.18,0.00049863,31]
[312681655,1706145074724,-500.0,0.00049863,31]
[312681656,1706145074733,-225.35134149,0.00049863,14]
[312681657,1706145074742,-523.88,0.00049863,31]
[312681658,1706145074751,-500.0,0.00049863,31]
[312681659,1706145074761,-500.0,0.00049863,31]
[312681660,1706145074770,-500.0,0.00049863,31]
[312681661,1706145074780,-500.0,0.00049863,31]
[312681662,1706145074951,-500.0,0.00049863,31]
[312681663,1706145074977,-500.0,0.00049863,31]
[312681664,1706145074986,-500.0,0.00049863,31]
[312681665,1706145074996,-1157.14,0.00049863,31]
[312681666,1706145075005,-500.0,0.00049863,31]
[312681667,1706145075015,-500.0,0.00049863,31]
[312681668,1706145075026,-500.0,0.00049863,31]
[312681669,1706145075037,-500.0,0.00049863,31]
[312681670,1706145075048,-500.0,0.00049863,31]
[312681671,1706145075058,-358.81582849,0.00049863,31]
[312681672,1706145075067,-500.0,0.00049863,31]
[312681673,1706145075078,-594.98,0.00049863,31]
[312681674,1706145075088,-500.0,0.00049863,31]
[312681675,1706145075097,-500.0,0.00049863,31]
[312681676,1706145075107,-500.0,0.00049863,31]
[312681677,1706145075116,-500.0,0.00049863,31]
[312681678,1706145075126,-500.0,0.00049863,31]
[312681679,1706145075136,-500.0,0.00049863,31]
[312681680,1706145075145,-621.48,0.00049863,31]
[312681681,1706145075155,-500.0,0.00049863,31]
[312681682,1706145075164,-659.17,0.00049863,31]
[312681683,1706145075174,-500.0,0.00049863,31]
[312681684,1706145075183,-500.0,0.00049863,31]
[312681685,1706145075192,-701.09,0.00049863,31]
[312681686,1706145075202,-500.0,0.00049863,31]
[312681687,1706145075211,-500.0,0.00049863,31]
[312681688,1706145075220,-1697.01,0.00049863,31]
[312681689,1706145075230,-500.0,0.00049863,31]
[312681690,1706145075241,-500.0,0.00049863,31]
[312681691,1706145075253,-500.0,0.00049863,31]
[312681692,1706145075263,-500.0,0.00049863,31]
[312681693,1706145075273,-500.0,0.00049863,31]
[312681694,1706145075282,-500.0,0.00049863,31]
[312681695,1706145075291,-500.0,0.00049863,31]
[312681696,1706145075300,-523.57,0.00049863,31]
[312681697,1706145075310,-500.0,0.00049863,31]
[312681698,1706145075320,-500.0,0.00049863,31]
[312681699,1706145075329,-500.0,0.00049863,31]
[312681700,1706145075339,-728.06,0.00049863,31]
[312681701,1706145075348,-500.0,0.00049863,31]
[312681702,1706145075357,-511.53,0.00049863,31]
[312681703,1706145075366,-500.0,0.00049863,31]
[312681704,1706145075375,-500.0,0.00049863,31]
[312681705,1706145075385,-561.83744939,0.00049863,31]
[312681706,1706145075393,-500.0,0.00049863,31]
[312681707,1706145075403,-500.0,0.00049863,31]
[312681708,1706145075411,-665.87,0.00049863,31]
[312681709,1706145075421,-698.55,0.00049863,31]
[312681710,1706145075430,-500.0,0.00049863,31]
[312681711,1706145075439,-535.75,0.00049863,31]
[312681712,1706145075448,-500.0,0.00049863,31]
[312681713,1706145075457,-500.0,0.00049863,31]
[312681714,1706145075466,-500.0,0.00049863,31]
[312681715,1706145075475,-500.0,0.00049863,31]
[312681716,1706145075484,-973.03,0.00049863,2]
[312681717,1706145075493,-3653.94,0.00049863,31]
[312681718,1706145075502,-944.79,0.00049863,31]
[312681719,1706145075511,-500.0,0.00049863,31]
[312681720,1706145075523,-500.0,0.00049863,31]
[312681721,1706145075532,-500.0,0.00049863,31]
[312681722,1706145075541,-500.0,0.00049863,31]
[312681723,1706145075550,-517.29,0.00049863,31]
[312681724,1706145075560,-766.32,0.00049863,31]
[312681725,1706145075570,-578.45,0.00049863,31]
[312681726,1706145075579,-500.0,0.00049863,31]
[312681727,1706145075588,-500.0,0.00049863,31]
[312681728,1706145075597,-500.0,0.00049863,31]
[312681729,1706145075606,-500.0,0.00049863,31]
[312681730,1706145075616,-571.27,0.00049863,31]
[312681731,1706145075627,-500.0,0.00049863,31]
[312681732,1706145075636,-8715.7,0.00049863,31]
[312681733,1706145075645,-500.0,0.00049863,31]
[312681734,1706145075654,-1119.03,0.00049863,2]
[312681735,1706145075663,-500.0,0.00049863,31]
[312681736,1706145075673,-563.62,0.00049863,31]
[312681737,1706145075682,-203.82,0.00049863,31]
[312681738,1706145075691,-500.0,0.00049863,31]
[312681739,1706145075701,-500.0,0.00049863,31]
[312681740,1706145075710,-500.0,0.00049863,31]
[312681741,1706145075719,-540.62553562,0.00049863,31]
[312681742,1706145075729,-551.67,0.00049863,31]
[312681743,1706145075738,-1258.54,0.00049863,31]
[312681744,1706145075747,-797.85,0.00049863,31]
[312681745,1706145075755,-500.0,0.00049863,31]
[312681746,1706145075764,-500.0,0.00049863,31]
[312681747,1706145075775,-500.0,0.00049863,31]
[312681748,1706145075784,-500.0,0.00049863,31]
[312681749,1706145075793,-500.0,0.00049863,31]
[312681750,1706145075802,-500.0,0.00049863,31]
[312681751,1706145075811,-500.0,0.00049863,31]
[312681752,1706145075822,-552.22467131,0.00049863,31]
[312681753,1706145075832,-524.49,0.00049863,31]
[312681754,1706145075841,-1041.4,0.00049863,31]
[312681755,1706145075850,-500.0,0.00049863,31]
[312681756,1706145075860,-500.0,0.00049863,31]
[312681757,1706145075869,-1295.76,0.00049863,31]
[312681758,1706145075878,-500.0,0.00049863,31]
[312681759,1706145075887,-572.67,0.00049863,31]
[312681760,1706145075897,-500.0,0.00049863,31]
[312681761,1706145075906,-866.53,0.00049863,31]
[312681762,1706145075915,-500.0,0.00049863,31]
[312681763,1706145075925,-717.84,0.00049863,31]
[312681764,1706145075936,-531.79,0.00049863,31]
[312681765,1706145075946,-500.0,0.00049863,31]
[312681766,1706145075956,-500.0,0.00049863,31]
[312681767,1706145075965,-543.89,0.00049863,31]
[312681768,1706145075975,-242.9521627,0.00049863,31]
[312681769,1706145075986,-500.0,0.00049863,31]
[312681770,1706145075996,-1360.18,0.00049863,31]
[312681771,1706145076006,-1845.53,0.00049863,31]
[312681772,1706145076015,-500.0,0.00049863,31]
[312681773,1706145076024,-500.0,0.00049863,31]
[312681774,1706145076033,-738.6,0.00049863,31]
[312681775,1706145076043,-645.65,0.00049863,31]
[312681776,1706145076052,-541.32,0.00049863,31]
[312681777,1706145076063,-500.0,0.00049863,31]
[312681778,1706145076072,-500.0,0.00049863,31]
[312681779,1706145076082,-414.33,0.00049863,31]
[312681780,1706145076092,-500.0,0.00049863,31]
[312681781,1706145076102,-500.0,0.00049863,31]
[312681782,1706145076111,-500.0,0.00049863,31]
[312681783,1706145076121,-500.0,0.00049863,31]
[312681784,1706145076131,-569.14,0.00049863,31]
[312681785,1706145076142,-500.0,0.00049863,31]
[312681786,1706145076152,-500.0,0.00049863,31]
[312681787,1706145076162,-500.0,0.00049863,31]
[312681788,1706145076171,-567.82,0.00049863,31]
[312681789,1706145076180,-500.0,0.00049863,31]
[312681790,1706145076190,-959.04,0.00049863,31]
[312681791,1706145076198,-500.0,0.00049863,31]
[312681792,1706145076208,-634.67911668,0.00049863,31]
[312681793,1706145076216,-1000.0,0.00049863,30]
[312681794,1706145076226,-500.0,0.00049863,31]
[312681795,1706145076235,-500.0,0.00049863,31]
[312681796,1706145076244,-672.35,0.00049863,31]
[312681797,1706145076253,-500.0,0.00049863,31]
[312681798,1706145076262,-3857.57,0.00049863,5]
[312681799,1706145076271,-1206.46,0.00049863,31]
[312681800,1706145076281,-608.48,0.00049863,31]
[312681801,1706145076290,-500.0,0.00049863,31]
[312681802,1706145076299,-1000.0,0.00049863,2]
[312681803,1706145076308,-2393.75,0.00049863,31]
[312681804,1706145076317,-500.0,0.00049863,31]
[312681805,1706145076328,-681.13,0.00049863,31]
[312681806,1706145076337,-500.0,0.00049863,31]
[312681807,1706145076349,-683.16,0.00049863,31]
[312681808,1706145076358,-714.81,0.00049863,31]
[312681809,1706145076368,-500.0,0.00049863,31]
[312681810,1706145076377,-585.71,0.00049863,31]
[312681811,1706145076386,-500.0,0.00049863,31]
[312681812,1706145076396,-500.0,0.00049863,31]
[312681813,1706145076405,-966.39,0.00049863,31]
[312681814,1706145076415,-500.0,0.00049863,31]
[312681815,1706145076424,-5066.61,0.00049863,31]
[312681816,1706145076433,-500.0,0.00049863,31]
[312681817,1706145076442,-2701.77,0.00049863,31]
[312681818,1706145076451,-535.75,0.00049863,31]
[312681819,1706145076460,-500.0,0.00049863,31]
[312681820,1706145076470,-500.0,0.00049863,31]
[312681821,1706145076479,-2453.54,0.00049863,31]
[312681822,1706145076488,-532.81,0.00049863,31]
[312681823,1706145076497,-2066.55,0.00049863,31]
[312681824,1706145076506,-687.75,0.00049863,31]
[312681825,1706145076516,-580.27,0.00049863,31]
[312681826,1706145076527,-5784.02,0.00049863,31]
[312681827,1706145076538,-1006.46,0.00049863,31]
[312681828,1706145076550,-500.0,0.00049863,31]
[312681829,1706145076561,-500.0,0.00049863,31]
[312681830,1706145076572,-500.0,0.00049863,31]
[312681831,1706145076582,-500.0,0.00049863,31]
[312681832,1706145076592,-537.04,0.00049863,31]
[312681833,1706145076602,-544.54182815,0.00049863,31]
[312681834,1706145076612,-500.0,0.00049863,31]
[312681835,1706145076622,-584.5,0.00049863,31]
[312681836,1706145076633,-835.92,0.00049863,31]
[312681837,1706145076643,-742.38,0.00049863,31]
[312681838,1706145076655,-660.52,0.00049863,31]
[312681839,1706145076664,-500.0,0.00049863,31]
[312681840,1706145076674,-500.0,0.00049863,31]
[312681841,1706145076682,-500.0,0.00049863,31]
[312681842,1706145076692,-540.87,0.00049863,31]
[312681843,1706145076702,-1086.36,0.00049863,31]
[312681844,1706145076712,-534.4061996,0.00049863,31]
[312681845,1706145076721,-500.0,0.00049863,31]
[312681846,1706145076731,-1735.79,0.00049863,31]
[312681847,1706145076740,-650.74,0.00049863,31]
[312681848,1706145076749,-500.0,0.00049863,31]
[312681849,1706145076758,-500.0,0.00049863,31]
[312681850,1706145076767,-500.0,0.00049863,31]
[312681851,1706145076777,-500.0,0.00049863,31]
[312681852,1706145076786,-677.43,0.00049863,31]
[312681853,1706145076795,-500.0,0.00049863,31]
[312681854,1706145076804,-700.44,0.00049863,31]
[312681855,1706145076813,-500.0,0.00049863,31]
[312681856,1706145076822,-1060.9,0.00049863,31]
[312681857,1706145076831,-500.55,0.00049863,31]
[312681858,1706145076841,-547.24,0.00049863,31]
[312681859,1706145076850,-500.0,0.00049863,31]
[312681860,1706145076859,-500.0,0.00049863,31]
[312681861,1706145076868,-2280.94,0.00049863,31]
[312681862,1706145076878,-552.79,0.00049863,31]
[312681863,1706145076887,-1320.68,0.00049863,31]
[312681864,1706145076896,-500.0,0.00049863,31]
[312681865,1706145076905,-1247.14,0.00049863,31]
[312681866,1706145076914,-500.0,0.00049863,31]
[312681867,1706145076924,-500.0,0.00049863,31]
[312681868,1706145076933,-581.01,0.00049863,31]
[312681869,1706145076942,-500.0,0.00049863,31]
[312681870,1706145076951,-712.54,0.00049863,31]
[312681871,1706145076960,-500.0,0.00049863,31]
[312681872,1706145076969,-500.0,0.00049863,31]
[312681873,1706145076978,-608.94,0.00049863,31]
[312681874,1706145076987,-500.0,0.00049863,31]
[312681875,1706145076996,-693.55,0.00049863,31]
[312681876,1706145077005,-500.0,0.00049863,31]
[312681877,1706145077014,-500.0,0.00049863,31]
[312681878,1706145077023,-248.47554792,0.00049863,31]
[312681879,1706145077032,-500.0,0.00049863,31]
[312681880,1706145077041,-500.0,0.00049863,31]
[312681881,1706145077051,-887.42,0.00049863,31]
[312681882,1706145077061,-500.0,0.00049863,31]
[312681883,1706145077070,-633.04,0.00049863,31]
[312681884,1706145077079,-706.67,0.00049863,31]
[312681885,1706145077087,-500.0,0.00049863,31]
[312681886,1706145077096,-500.0,0.00049863,31]
[312681887,1706145077106,-778.86,0.00049863,31]
[312681888,1706145077115,-639.06,0.00049863,31]
[312681889,1706145077125,-4966.08,0.00049863,31]
[312681890,1706145077134,-712.26,0.00049863,31]
[312681891,1706145077143,-1315.35,0.00049863,31]
[312681892,1706145077152,-500.0,0.00049863,31]
[312681893,1706145077161,-740.74,0.00049863,31]
[312681894,1706145077170,-564.19,0.00049863,31]
[312681895,1706145077180,-645.15,0.00049863,31]
[312681896,1706145077189,-765.5,0.00049863,31]
[312681897,1706145077198,-1073.61,0.00049863,31]
[312681898,1706145077207,-500.0,0.00049863,31]
[312681899,1706145077217,-500.0,0.00049863,31]
[312681900,1706145077226,-539.53,0.00049863,31]
[312681901,1706145077236,-500.0,0.00049863,31]
[312681902,1706145077245,-751.1,0.00049863,31]
[312681903,1706145077254,-500.0,0.00049863,31]
[312681904,1706145077263,-553.53,0.00049863,31]
[312681905,1706145077272,-500.0,0.00049863,31]
[312681906,1706145077282,-500.0,0.00049863,31]
[312681907,1706145077291,-537.1,0.00049863,31]
[312681908,1706145077301,-608.69,0.00049863,31]
[312681909,1706145077311,-649.59,0.00049863,31]
[312681910,1706145077320,-3061.04,0.00049863,31]
[312681911,1706145077330,-875.62,0.00049863,31]
[312681912,1706145077339,-769.1,0.00049863,31]
[312681913,1706145077348,-1451.54,0.00049863,31]
[312681914,1706145077357,-500.0,0.00049863,31]
[312681915,1706145077367,-860.59,0.00049863,31]
[312681916,1706145077376,-500.0,0.00049863,31]
[312681917,1706145077385,-703.22,0.00049863,31]
[312681918,1706145077394,-992.0,0.00049863,31]
[312681919,1706145077403,-737.72,0.00049863,31]
[312681920,1706145077412,-658.3,0.00049863,31]
[312681921,1706145077421,-500.0,0.00049863,31]
[312681922,1706145077430,-500.0,0.00049863,31]
[312681923,1706145077440,-500.0,0.00049863,31]
[312681924,1706145077449,-500.0,0.00049863,31]
[312681925,1706145077458,-500.0,0.00049863,31]
[312681926,1706145077469,-609.64279285,0.00049863,31]
[312681927,1706145077479,-500.0,0.00049863,31]
[312681928,1706145077488,-655.7,0.00049863,31]
[312681929,1706145077499,-599.29,0.00049863,31]
[312681930,1706145077509,-764.66,0.00049863,31]
[312681931,1706145077521,-500.0,0.00049863,31]
[312681932,1706145077531,-3144.18,0.00049863,31]
[312681933,1706145077541,-548.31,0.00049863,31]
[312681934,1706145077554,-500.0,0.00049863,31]
[312681935,1706145077566,-673.27,0.00049863,31]
[312681936,1706145077575,-500.0,0.00049863,31]
[312681937,1706145077584,-765.11,0.00049863,31]
[312681938,1706145077634,-730.54,0.00049863,31]
[312681939,1706145077646,-500.0,0.00049863,31]
[312681940,1706145077657,-500.0,0.00049863,31]
[312681941,1706145077667,-515.5,0.00049863,31]
[312681942,1706145077677,-5000.0,0.00049863,14]
[312681943,1706145077687,-1295.4,0.00049863,31]
[312681944,1706145077697,-618.61,0.00049863,31]
[312681945,1706145077706,-500.0,0.00049863,31]
[312681946,1706145077715,-500.0,0.00049863,31]
[312681947,1706145077725,-792.67,0.00049863,31]
[312681948,1706145077734,-500.0,0.00049863,31]
[312681949,1706145077743,-500.0,0.00049863,31]
[312681950,1706145077752,-600.26,0.00049863,31]
[312681951,1706145077761,-1247.69,0.00049863,31]
[312681952,1706145077770,-501.79,0.00049863,31]
[312681953,1706145077779,-500.0,0.00049863,31]
[312681954,1706145077788,-500.0,0.00049863,31]
[312681955,1706145077798,-678.69,0.00049863,31]
[312681956,1706145077807,-500.0,0.00049863,31]
[312681957,1706145077816,-560.58,0.00049863,31]
[312681958,1706145077826,-748.16,0.00049863,31]
[312681959,1706145077834,-3710.41,0.00049863,31]
[312681960,1706145077844,-689.9,0.00049863,31]
[312681961,1706145077853,-500.0,0.00049863,120]
[312681962,1706145077862,-1129.79,0.00049863,31]
[312681963,1706145077871,-500.0,0.00049863,31]
[312681964,1706145077880,-500.0,0.00049863,31]
[312681965,1706145077889,-500.0,0.00049863,31]
[312681966,1706145077899,-500.0,0.00049863,31]
[312681967,1706145078072,-2615.23,0.00049863,31]
[312681968,1706145078082,-536.66,0.00049863,31]
[312681969,1706145078091,-500.0,0.00049863,31]
[312681970,1706145078101,-1281.32,0.00049863,31]
[312681971,1706145078110,-820.44,0.00049863,31]
[312681972,1706145078120,-500.0,0.00049863,31]
[312681973,1706145078130,-1013.31,0.00049863,31]
[312681974,1706145078140,-500.0,0.00049863,31]
[312681975,1706145078150,-500.0,0.00049863,31]
[312681976,1706145078159,-500.0,0.00049863,31]
[312681977,1706145078169,-571.87,0.00049863,31]
[312681978,1706145078178,-500.0,0.00049863,31]
[312681979,1706145078188,-500.0,0.00049863,31]
[312681980,1706145078200,-605.74,0.00049863,31]
[312681981,1706145078210,-500.0,0.00049863,31]
[312681982,1706145078221,-500.0,0.00049863,31]
[312681983,1706145078231,-500.0,0.00049863,31]
[312681984,1706145078241,-500.0,0.00049863,31]
[312681985,1706145078251,-756.21,0.00049863,31]
[312681986,1706145078260,-537.66,0.00049863,31]
[312681987,1706145078269,-594.93,0.00049863,2]
[312681988,1706145078280,-500.0,0.00049863,31]
[312681989,1706145078289,-500.0,0.00049863,31]
[312681990,1706145078299,-724.18,0.00049863,31]
[312681991,1706145078309,-500.0,0.00049863,31]
[312681992,1706145078318,-724.25,0.00049863,31]
[312681993,1706145078328,-2993.87,0.00049863,31]
[312681994,1706145078338,-618.86,0.00049863,31]
[312681995,1706145078348,-500.0,0.00049863,31]
[312681996,1706145078357,-612.72,0.00049863,31]
[312681997,1706145078366,-500.0,0.00049863,31]
[312681998,1706145078375,-500.0,0.00049863,31]
[312681999,1706145078384,-887.79,0.00049863,31]
[312682000,1706145078394,-514.92,0.00049863,31]
[312682001,1706145078403,-500.0,0.00049863,31]
[312682002,1706145078412,-500.0,0.00049863,31]
[312682003,1706145078421,-1822.59,0.00049863,2]
[312682004,1706145078431,-500.0,0.00049863,31]
[312682005,1706145078440,-500.0,0.00049863,31]
[312682006,1706145078449,-939.98,0.00049863,31]
[312682007,1706145078459,-1226.02,0.00049863,31]
[312682008,1706145078468,-500.0,0.00049863,31]
[312682009,1706145078478,-500.0,0.00049863,31]
[312682010,1706145078487,-508.04,0.00049863,31]
[312682011,1706145078497,-500.0,0.00049863,31]
[312682012,1706145078506,-500.0,0.00049863,31]
[312682013,1706145078515,-681.8,0.00049863,31]
[312682014,1706145078525,-646.07,0.00049863,31]
[312682015,1706145078535,-500.0,0.00049863,31]
[312682016,1706145078544,-836.07,0.00049863,31]
[312682017,1706145078556,-500.0,0.00049863,31]
[312682018,1706145078569,-151.0,0.00049863,2]
[312682019,1706145078578,-151.0,0.00049863,14]
[312682020,1706145078587,-151.0,0.00049863,14]
[312682021,1706145078597,-151.0,0.00049863,14]
[312682022,1706145078606,-151.0,0.00049863,14]
[312682023,1706145078616,-182.281348,0.00049863,14]
[312682024,1706145078625,-151.0,0.00049863,14]
[312682025,1706145078635,-647.69,0.0004989,120]
[312682026,1706145078645,-1400.0,0.0004989,2]
[312682027,1706145078655,-1443.0,0.0004989,2]
[312682028,1706145078664,-204.0,0.00049896,25]
[312682029,1706145078674,-3724.62806019,0.00049963,2]
[312682030,1706145078683,-4630.8963767,0.00049966,2]
[312682031,1706145078693,-1175.3630436,0.00049966,2]
[312682032,1706145078702,-51488.1919999,0.00049966,2]
[312682033,1706145078711,-61054.5757999,0.00049966,2]
[312682034,1706145078720,-2773.7618542,0.00049966,2]
[312682035,1706145078730,-52188.0254801,0.00049966,2]
[312682036,1706145078739,-186.997498,0.00049966,14]
[312682037,1706145078748,-186.997498,0.00049966,14]
[312682038,1706145078757,-193.355866,0.00049966,14]
[312682039,1706145078766,-479.70925,0.00049966,14]
[312682040,1706145078775,-479.70925,0.00049966,14]
[312682041,1706145078784,-151.0,0.00049966,14]
[312682042,1706145078793,-151.0,0.00049966,14]
[312682043,1706145078802,-24408.70803562,0.00049966,2]
[312682044,1706145078812,-641.146266,0.00049966,14]
[312682045,1706145078822,-641.146266,0.00049966,14]
[312682046,1706145078831,-450.0,0.0004998,5]
[312682047,1706145078840,-450.0,0.0004998,5]
[312682048,1706145078850,-200.0,0.00049987,30]
[312682049,1706145078859,-200.0,0.00049987,39]
[312682050,1706145078868,-200.0,0.00049987,49]
[312682051,1706145078877,-5646.0,0.0004999,2]
[312682052,1706145078887,-4811.0,0.0004999,2]
[312682053,1706145078896,-2954.05592216,0.0005,4]
[312682054,1706145078905,-7852.60199557,0.0005,4]
[312682055,1706145078914,-969.16,0.0005,21]
[312682056,1706145078923,-1113.16,0.0005,120]
[312682057,1706145078934,-692902.27373356,0.0005,2]
[312682058,1706145078943,-11785.456265,0.0005,2]
[312682059,1706145078953,-16443.94614998,0.0005,3]
[312682060,1706145078963,-5929.0293555,0.0005,30]
[312682061,1706145078973,-3000.0,0.0005,120]
[312682062,1706145078981,-9996.0,0.0005,120]
[312682063,1706145078990,-5962.48725494,0.0005,30]
[312682064,1706145078999,-1235.70253026,0.0005,120]
[312682065,1706145079009,-1878.24779766,0.0005,120]
[312682066,1706145079019,-275.02275198,0.0005,4]
[312682067,1706145079029,-4000.0,0.0005,120]
[312682068,1706145079039,-155.000001,0.0005,2]
[312682069,1706145079049,-4000.0,0.0005,120]
[312682070,1706145079059,-404.54803196,0.0005,4]
[312682071,1706145079069,-155.46559937,0.0005,2]
[312682072,1706145079078,-4000.0,0.0005,120]
[312682073,1706145079088,-4000.0,0.0005,120]
[312682074,1706145079099,-4000.0,0.0005,120]
[312682075,1706145079108,-3955.8197,0.0005,120]
[312682076,1706145079117,-4000.0,0.0005,120]
[312682077,1706145079127,-151.0,0.0005,14]
[312682078,1706145079137,-290.688944,0.0005,14]
[312682079,1706145079146,-200.0,0.0005,27]
[312682080,1706145079155,-151.0,0.0005,14]
[312682081,1706145079165,-516.58311,0.0005,14]
[312682082,1706145079174,-54259.0,0.0005,12]
[312682083,1706145079183,-516.58311,0.0005,14]
[312682084,1706145079194,-300.0,0.0005,33]
[312682085,1706145079203,-151.0,0.0005,14]
[312682086,1706145079212,-194.087691,0.0005,14]
[312682087,1706145079222,-574.0,0.0005,60]
[312682088,1706145079231,-625.59429668,0.0005,60]
[312682089,1706145079241,-656.63812099,0.0005,60]
[312682090,1706145079250,-207.0,0.0005,30]
[312682091,1706145079259,-7455.0,0.0005,30]
[312682092,1706145079269,-3616.26561185,0.0005,7]
[312682093,1706145079279,-4000.0,0.0005,120]
[312682094,1706145079287,-150.0,0.0005,27]
[312682095,1706145079296,-200.0,0.00050036,10]
[312682096,1706145079306,-3724.62806019,0.00050133,2]
[312682097,1706145079317,-300.0,0.00050135,2]
[312682098,1706145079326,-300.0,0.00050135,2]
[312682099,1706145079335,-278.035526,0.00050136,14]
[312682100,1706145079345,-186.997498,0.00050136,14]
[312682101,1706145079354,-186.997498,0.00050136,14]
[312682102,1706145079363,-479.70925,0.00050136,14]
[312682103,1706145079373,-479.70925,0.00050136,14]
[312682104,1706145079382,-151.0,0.00050136,14]
[312682105,1706145079391,-151.0,0.00050136,14]
[312682106,1706145079400,-641.146266,0.00050136,14]
[312682107,1706145079410,-641.146266,0.00050136,14]
[312682108,1706145079419,-500.0,0.00050136,31]
[312682109,1706145079429,-500.0,0.00050136,31]
[312682110,1706145079439,-500.0,0.00050136,31]
[312682111,1706145079449,-500.0,0.00050136,31]
[312682112,1706145079458,-523.11279636,0.00050136,31]
[312682113,1706145079467,-500.0,0.00050136,31]
[312682114,1706145079477,-500.0,0.00050136,31]
[312682115,1706145079486,-500.0,0.00050136,31]
[312682116,1706145079494,-500.0,0.00050136,31]
[312682117,1706145079503,-500.0,0.00050136,31]
[312682118,1706145079512,-500.0,0.00050136,31]
[312682119,1706145079523,-500.0,0.00050136,31]
[312682120,1706145079532,-500.0,0.00050136,31]